[Event "*** SCC Grand Prix: Titled Tuesday Blitz"]
[Site "Chess.com"]
[Date "2020.06.02"]
[Round "3"]
[White "tylityli"]
[Black "Gandrade2"]
[Result "1-0"]
[WhiteElo "2284"]
[BlackElo "2006"]
[TimeControl "180+1"]
[EndTime "10:28:01 PDT"]
[Termination "tylityli won by resignation"]

1. d4 {[%clk 0:03:00.9]} 1... Nf6 {[%clk 0:02:58.5]} 2. c4 {[%clk 0:03:00.3]}
2... g6 {[%clk 0:02:58.5]} 3. Nc3 {[%clk 0:02:59.7]} 3... Bg7 {[%clk 0:02:58.6]}
4. e4 {[%clk 0:02:59.4]} 4... d6 {[%clk 0:02:59]} 5. Nge2 {[%clk 0:02:59.2]}
5... O-O {[%clk 0:02:56.7]} 6. Ng3 {[%clk 0:02:59]} 6... c5 {[%clk 0:02:55.4]}
7. d5 {[%clk 0:02:58.6]} 7... e6 {[%clk 0:02:55.9]} 8. Be2 {[%clk 0:02:56.8]}
8... exd5 {[%clk 0:02:55.2]} 9. cxd5 {[%clk 0:02:56.7]} 9... Re8 {[%clk
0:02:52.8]} 10. O-O {[%clk 0:02:56.6]} 10... a6 {[%clk 0:02:47.7]} 11. a4 {[%clk
0:02:55.9]} 11... Nbd7 {[%clk 0:02:46.4]} 12. Bf4 {[%clk 0:02:51.7]} 12... Ne5
{[%clk 0:02:41.6]} 13. Qd2 {[%clk 0:02:51.1]} 13... Bg4 {[%clk 0:02:16.4]} 14.
f3 {[%clk 0:02:40.8]} 14... Bd7 {[%clk 0:02:13.7]} 15. Bh6 {[%clk 0:02:40]}
15... Rb8 {[%clk 0:02:10.3]} 16. Bxg7 {[%clk 0:02:39.1]} 16... Kxg7 {[%clk
0:02:11.2]} 17. f4 {[%clk 0:02:25.8]} 17... Neg4 {[%clk 0:02:03.9]} 18. h3
{[%clk 0:02:22.6]} 18... Nh6 {[%clk 0:02:00.6]} 19. Bf3 {[%clk 0:01:41.4]} 19...
b5 {[%clk 0:01:52.9]} 20. axb5 {[%clk 0:01:40.3]} 20... axb5 {[%clk 0:01:53.8]}
21. Rfe1 {[%clk 0:01:28.2]} 21... b4 {[%clk 0:01:51.5]} 22. Na4 {[%clk
0:01:26.7]} 22... Bxa4 {[%clk 0:01:48.6]} 23. Rxa4 {[%clk 0:01:25.3]} 23... Nd7
{[%clk 0:01:43]} 24. Raa1 {[%clk 0:01:12.2]} 24... Qh4 {[%clk 0:01:26.9]} 25.
Kh2 {[%clk 0:01:07.6]} 25... Ng8 {[%clk 0:01:00.4]} 26. b3 {[%clk 0:00:57.1]}
26... Ngf6 {[%clk 0:00:36.3]} 27. Ra7 {[%clk 0:00:53.6]} 27... Ra8 {[%clk
0:00:33.8]} 28. Rea1 {[%clk 0:00:52.4]} 28... Rxa7 {[%clk 0:00:32.4]} 29. Rxa7
{[%clk 0:00:52]} 29... Nf8 {[%clk 0:00:28.7]} 30. Qf2 {[%clk 0:00:47.1]} 30...
Nh5 {[%clk 0:00:25.7]} 31. Nf5+ {[%clk 0:00:42.5]} 31... gxf5 {[%clk 0:00:20.4]}
32. Qxh4 {[%clk 0:00:42]} 1-0

[Event "*** SCC Grand Prix: Titled Tuesday Blitz"]
[Site "Chess.com"]
[Date "2020.06.02"]
[Round "3"]
[White "korbul"]
[Black "barbara25"]
[Result "1-0"]
[WhiteElo "2478"]
[BlackElo "2214"]
[TimeControl "180+1"]
[EndTime "10:28:03 PDT"]
[Termination "korbul won by resignation"]

1. d4 {[%clk 0:03:00.9]} 1... Nf6 {[%clk 0:02:58.5]} 2. c4 {[%clk 0:03:00.4]}
2... e6 {[%clk 0:02:58.5]} 3. Nf3 {[%clk 0:03:00.1]} 3... d5 {[%clk 0:02:56.7]}
4. Nc3 {[%clk 0:02:59]} 4... c6 {[%clk 0:02:56.6]} 5. e3 {[%clk 0:02:58.6]} 5...
Nbd7 {[%clk 0:02:55.9]} 6. Be2 {[%clk 0:02:58.6]} 6... Bd6 {[%clk 0:02:56.2]} 7.
O-O {[%clk 0:02:57]} 7... O-O {[%clk 0:02:48.8]} 8. Qc2 {[%clk 0:02:56.7]} 8...
e5 {[%clk 0:02:48.5]} 9. dxe5 {[%clk 0:02:54.3]} 9... Nxe5 {[%clk 0:02:48.5]}
10. cxd5 {[%clk 0:02:54.1]} 10... cxd5 {[%clk 0:02:47.2]} 11. Nb5 {[%clk
0:02:52]} 11... Bb8 {[%clk 0:02:46.6]} 12. Bd2 {[%clk 0:02:40.4]} 12... a6
{[%clk 0:02:45.5]} 13. Nbd4 {[%clk 0:02:39.7]} 13... Ne4 {[%clk 0:02:42.7]} 14.
Bb4 {[%clk 0:02:36]} 14... Re8 {[%clk 0:02:41.8]} 15. Rac1 {[%clk 0:02:30.1]}
15... Bd7 {[%clk 0:02:40]} 16. Rfd1 {[%clk 0:02:04.7]} 16... Qf6 {[%clk
0:02:37.5]} 17. Be1 {[%clk 0:01:54.5]} 17... Qh6 {[%clk 0:02:14.5]} 18. Qb3
{[%clk 0:01:44.6]} 18... Bc6 {[%clk 0:01:30.1]} 19. Nxe5 {[%clk 0:01:30]} 19...
Bxe5 {[%clk 0:01:24.3]} 20. f4 {[%clk 0:01:23.6]} 20... Bxd4 {[%clk 0:01:21.5]}
21. Rxd4 {[%clk 0:01:22.7]} 21... Nd6 {[%clk 0:01:13.7]} 22. Bf3 {[%clk
0:01:11.7]} 22... Nf5 {[%clk 0:00:55.8]} 23. Rd3 {[%clk 0:01:11.5]} 23... Bb5
{[%clk 0:00:52.1]} 24. Rdc3 {[%clk 0:01:11.3]} 24... d4 {[%clk 0:00:52.2]} 25.
Rc7 {[%clk 0:00:55.2]} 25... Qg6 {[%clk 0:00:23.9]} 26. e4 {[%clk 0:00:51.7]}
26... Ne3 {[%clk 0:00:22]} 27. Bg3 {[%clk 0:00:45.1]} 27... h5 {[%clk
0:00:13.6]} 28. f5 {[%clk 0:00:44.2]} 28... Qf6 {[%clk 0:00:10.7]} 29. Bh4
{[%clk 0:00:43.5]} 29... Re7 {[%clk 0:00:10.6]} 30. Bxf6 {[%clk 0:00:42.8]} 1-0

[Event "*** SCC Grand Prix: Titled Tuesday Blitz"]
[Site "Chess.com"]
[Date "2020.06.02"]
[Round "3"]
[White "Korona_91"]
[Black "OnePeculiarConundrum"]
[Result "0-1"]
[WhiteElo "2517"]
[BlackElo "2247"]
[TimeControl "180+1"]
[EndTime "10:28:04 PDT"]
[Termination "OnePeculiarConundrum won by resignation"]

1. e4 {[%clk 0:03:00]} 1... c5 {[%clk 0:03:00]} 2. Nf3 {[%clk 0:02:59.3]} 2...
d6 {[%clk 0:02:59.4]} 3. Bb5+ {[%clk 0:02:57.5]} 3... Bd7 {[%clk 0:02:57.1]} 4.
c4 {[%clk 0:02:57.6]} 4... Nf6 {[%clk 0:02:56.1]} 5. Nc3 {[%clk 0:02:57.4]} 5...
g6 {[%clk 0:02:55.7]} 6. d4 {[%clk 0:02:57.7]} 6... cxd4 {[%clk 0:02:55.7]} 7.
Nxd4 {[%clk 0:02:57.7]} 7... Bg7 {[%clk 0:02:55.9]} 8. O-O {[%clk 0:02:57]} 8...
O-O {[%clk 0:02:55.9]} 9. f3 {[%clk 0:02:57.4]} 9... a6 {[%clk 0:02:55.8]} 10.
Bxd7 {[%clk 0:02:57.3]} 10... Qxd7 {[%clk 0:02:56.3]} 11. Be3 {[%clk 0:02:57.4]}
11... Nc6 {[%clk 0:02:56.2]} 12. Rc1 {[%clk 0:02:57]} 12... Rfc8 {[%clk
0:02:53]} 13. b3 {[%clk 0:02:57]} 13... Rab8 {[%clk 0:02:52.3]} 14. Qe2 {[%clk
0:02:49.9]} 14... Nxe4 {[%clk 0:02:27.4]} 15. fxe4 {[%clk 0:02:37.4]} 15... Nxd4
{[%clk 0:02:26.2]} 16. Qf2 {[%clk 0:02:36.7]} 16... e5 {[%clk 0:02:26]} 17. Nd5
{[%clk 0:02:35.8]} 17... Rf8 {[%clk 0:02:21.3]} 18. Bxd4 {[%clk 0:02:25.6]}
18... exd4 {[%clk 0:02:21]} 19. Nf6+ {[%clk 0:02:25.9]} 19... Bxf6 {[%clk
0:02:18]} 20. Qxf6 {[%clk 0:02:26.8]} 20... d3 {[%clk 0:01:53.5]} 21. Rcd1
{[%clk 0:02:24.1]} 21... Rbe8 {[%clk 0:01:53.3]} 22. Rfe1 {[%clk 0:02:07.2]}
22... Re6 {[%clk 0:01:20.1]} 23. Qd4 {[%clk 0:02:06.3]} 23... Rfe8 {[%clk
0:01:20.1]} 24. Rxd3 {[%clk 0:02:05]} 24... Qe7 {[%clk 0:01:20]} 25. Rf1 {[%clk
0:01:32]} 25... Rxe4 {[%clk 0:01:16.2]} 26. Qxd6 {[%clk 0:01:29.3]} 26... Qxd6
{[%clk 0:01:16.2]} 27. Rxd6 {[%clk 0:01:30.2]} 27... R8e7 {[%clk 0:01:15.5]} 28.
Rb6 {[%clk 0:01:22.5]} 28... Re2 {[%clk 0:01:14.3]} 29. a4 {[%clk 0:01:06.1]}
29... Rb2 {[%clk 0:01:11.3]} 30. Rf3 {[%clk 0:00:42]} 30... Re1+ {[%clk
0:01:09.8]} 31. Rf1 {[%clk 0:00:42.2]} 31... Ree2 {[%clk 0:01:09.3]} 32. Rd1
{[%clk 0:00:42.5]} 32... Rxg2+ {[%clk 0:01:09]} 33. Kf1 {[%clk 0:00:43.1]} 33...
Rxh2 {[%clk 0:01:08.1]} 34. Kg1 {[%clk 0:00:43.7]} 34... Rhg2+ {[%clk
0:00:58.6]} 35. Kf1 {[%clk 0:00:42.8]} 35... Rgf2+ {[%clk 0:00:58.9]} 36. Kg1
{[%clk 0:00:42.5]} 36... h5 {[%clk 0:00:57.8]} 37. Rxb7 {[%clk 0:00:42.4]} 37...
h4 {[%clk 0:00:57.1]} 38. c5 {[%clk 0:00:41.9]} 38... h3 {[%clk 0:00:55.5]} 39.
c6 {[%clk 0:00:42]} 39... Rg2+ {[%clk 0:00:55.7]} 0-1

[Event "*** SCC Grand Prix: Titled Tuesday Blitz"]
[Site "Chess.com"]
[Date "2020.06.02"]
[Round "3"]
[White "politeplayer"]
[Black "Anna_Ko_Rnd"]
[Result "1-0"]
[WhiteElo "2241"]
[BlackElo "1737"]
[TimeControl "180+1"]
[EndTime "10:28:07 PDT"]
[Termination "politeplayer won by resignation"]

1. d4 {[%clk 0:03:00.9]} 1... Nf6 {[%clk 0:02:58.5]} 2. Nf3 {[%clk 0:02:59]}
2... e6 {[%clk 0:02:58.1]} 3. e3 {[%clk 0:02:59.5]} 3... c5 {[%clk 0:02:56.9]}
4. Bd3 {[%clk 0:02:59.4]} 4... Nc6 {[%clk 0:02:53.9]} 5. c3 {[%clk 0:02:57.2]}
5... b6 {[%clk 0:02:52.7]} 6. O-O {[%clk 0:02:57.2]} 6... Bb7 {[%clk 0:02:52.8]}
7. Nbd2 {[%clk 0:02:57.5]} 7... Be7 {[%clk 0:02:52.9]} 8. Re1 {[%clk 0:02:56.4]}
8... d5 {[%clk 0:02:51.1]} 9. Qc2 {[%clk 0:02:52.2]} 9... O-O {[%clk 0:02:50.3]}
10. Ne5 {[%clk 0:02:45]} 10... Rc8 {[%clk 0:02:41.8]} 11. Nxc6 {[%clk
0:02:38.5]} 11... Bxc6 {[%clk 0:02:40.1]} 12. Nf3 {[%clk 0:02:38.6]} 12... h6
{[%clk 0:02:38.2]} 13. Ne5 {[%clk 0:02:37.6]} 13... Bb7 {[%clk 0:02:38.1]} 14.
Qe2 {[%clk 0:02:28.6]} 14... cxd4 {[%clk 0:02:33.5]} 15. exd4 {[%clk 0:02:27.8]}
15... Ne4 {[%clk 0:02:26.3]} 16. Qg4 {[%clk 0:02:19.8]} 16... Nf6 {[%clk
0:02:07.8]} 17. Qg3 {[%clk 0:02:18.3]} 17... Kh8 {[%clk 0:02:00.1]} 18. Qh3
{[%clk 0:02:17.6]} 18... Ng8 {[%clk 0:01:44.1]} 19. Re3 {[%clk 0:02:15.4]} 19...
Bg5 {[%clk 0:01:32]} 20. Rf3 {[%clk 0:02:11.5]} 20... Rc7 {[%clk 0:01:17.4]} 21.
Bxg5 {[%clk 0:01:59.7]} 21... Qxg5 {[%clk 0:01:15.1]} 22. Ng6+ {[%clk
0:01:43.7]} 22... fxg6 {[%clk 0:01:10.2]} 23. Rxf8 {[%clk 0:01:42.9]} 23... Re7
{[%clk 0:01:00.9]} 24. Qg3 {[%clk 0:01:34.7]} 24... Qxg3 {[%clk 0:00:55.2]} 25.
fxg3 {[%clk 0:01:33.6]} 25... Kh7 {[%clk 0:00:55.7]} 26. Raf1 {[%clk 0:01:32.9]}
26... Nf6 {[%clk 0:00:52.6]} 27. h3 {[%clk 0:01:31.2]} 27... Bc6 {[%clk
0:00:50.2]} 28. g4 {[%clk 0:01:27.9]} 28... e5 {[%clk 0:00:41.9]} 29. dxe5
{[%clk 0:01:24.7]} 29... Rxe5 {[%clk 0:00:39.8]} 30. Rf7 {[%clk 0:01:22.9]}
30... Ne4 {[%clk 0:00:25.4]} 31. Bxe4 {[%clk 0:01:18.9]} 31... dxe4 {[%clk
0:00:23.9]} 32. Rc7 {[%clk 0:01:15.6]} 32... Ba8 {[%clk 0:00:19.5]} 33. Rff7
{[%clk 0:01:12]} 33... e3 {[%clk 0:00:11.5]} 34. Rxg7+ {[%clk 0:01:11.8]} 34...
Kh8 {[%clk 0:00:11.5]} 35. Rge7 {[%clk 0:01:12.1]} 1-0

[Event "*** SCC Grand Prix: Titled Tuesday Blitz"]
[Site "Chess.com"]
[Date "2020.06.02"]
[Round "3"]
[White "LiemLe"]
[Black "Iljushin_Alexey"]
[Result "1/2-1/2"]
[WhiteElo "2913"]
[BlackElo "2665"]
[TimeControl "180+1"]
[EndTime "10:28:09 PDT"]
[Termination "Game drawn by repetition"]

1. e4 {[%clk 0:03:00.9]} 1... c6 {[%clk 0:02:59.8]} 2. d4 {[%clk 0:03:00.4]}
2... d5 {[%clk 0:03:00.1]} 3. e5 {[%clk 0:03:00.9]} 3... Bf5 {[%clk 0:02:59.6]}
4. Nf3 {[%clk 0:03:00.7]} 4... e6 {[%clk 0:02:59.8]} 5. Be2 {[%clk 0:03:00]}
5... Nd7 {[%clk 0:03:00]} 6. O-O {[%clk 0:02:59.2]} 6... Bg6 {[%clk 0:03:00.1]}
7. Nbd2 {[%clk 0:02:59.1]} 7... Nh6 {[%clk 0:02:58.9]} 8. Nb3 {[%clk 0:02:58.3]}
8... Nf5 {[%clk 0:02:59.1]} 9. a4 {[%clk 0:02:58.9]} 9... h5 {[%clk 0:02:55.8]}
10. a5 {[%clk 0:02:57.5]} 10... h4 {[%clk 0:02:51.3]} 11. c4 {[%clk 0:02:47.4]}
11... a6 {[%clk 0:02:38.7]} 12. Bd2 {[%clk 0:02:26.2]} 12... Be7 {[%clk
0:02:37.7]} 13. Rc1 {[%clk 0:02:25]} 13... Bh5 {[%clk 0:02:32.1]} 14. Ne1 {[%clk
0:02:19.6]} 14... Bxe2 {[%clk 0:02:31.1]} 15. Qxe2 {[%clk 0:02:20.5]} 15... g6
{[%clk 0:02:19.2]} 16. cxd5 {[%clk 0:02:09.1]} 16... cxd5 {[%clk 0:02:18.8]} 17.
Nd3 {[%clk 0:02:08.2]} 17... Kf8 {[%clk 0:02:15.1]} 18. g4 {[%clk 0:01:49.4]}
18... hxg3 {[%clk 0:02:14.3]} 19. hxg3 {[%clk 0:01:50.3]} 19... Kg7 {[%clk
0:02:09.8]} 20. Kg2 {[%clk 0:01:49.2]} 20... Rc8 {[%clk 0:02:07.6]} 21. Bc3
{[%clk 0:01:48.3]} 21... Rc4 {[%clk 0:02:02.5]} 22. Rh1 {[%clk 0:01:43.3]} 22...
Rxh1 {[%clk 0:01:51.6]} 23. Rxh1 {[%clk 0:01:44.2]} 23... Qb8 {[%clk 0:01:41.9]}
24. Nd2 {[%clk 0:00:50.5]} 24... Rc8 {[%clk 0:01:41.8]} 25. Nf3 {[%clk
0:00:48.5]} 25... Rh8 {[%clk 0:01:39.8]} 26. Rxh8 {[%clk 0:00:37.8]} 26... Qxh8
{[%clk 0:01:37.8]} 27. Qd2 {[%clk 0:00:38.4]} 27... Qc8 {[%clk 0:01:33.5]} 28.
Bb4 {[%clk 0:00:30.2]} 28... Qc4 {[%clk 0:01:28.2]} 29. Bxe7 {[%clk 0:00:29.4]}
29... Nxe7 {[%clk 0:01:27.8]} 30. Qg5 {[%clk 0:00:20.2]} 30... Nf5 {[%clk
0:01:13.4]} 31. Nc5 {[%clk 0:00:20.2]} 31... Nxc5 {[%clk 0:01:06.8]} 32. Qf6+
{[%clk 0:00:20.2]} 32... Kf8 {[%clk 0:01:05.5]} 33. Qd8+ {[%clk 0:00:18]} 33...
Kg7 {[%clk 0:01:03.5]} 34. Qf6+ {[%clk 0:00:18.9]} 34... Kg8 {[%clk 0:01:02.9]}
35. Ng5 {[%clk 0:00:19.5]} 35... Ne3+ {[%clk 0:01:02.5]} 36. fxe3 {[%clk
0:00:14.7]} 36... Qe2+ {[%clk 0:01:01.7]} 37. Kh3 {[%clk 0:00:14.7]} 37... Qh5+
{[%clk 0:01:01.6]} 38. Kg2 {[%clk 0:00:15]} 38... Qe2+ {[%clk 0:01:01.6]} 39.
Kh1 {[%clk 0:00:14.9]} 39... Qe1+ {[%clk 0:01:01.1]} 40. Kh2 {[%clk 0:00:14.4]}
40... Qe2+ {[%clk 0:01:01.3]} 41. Kh3 {[%clk 0:00:14.5]} 41... Qh5+ {[%clk
0:01:01.4]} 42. Kg2 {[%clk 0:00:14.8]} 42... Qe2+ {[%clk 0:01:01.5]} 1/2-1/2

[Event "*** SCC Grand Prix: Titled Tuesday Blitz"]
[Site "Chess.com"]
[Date "2020.06.02"]
[Round "3"]
[White "Saxar85"]
[Black "elohunter1999"]
[Result "1-0"]
[WhiteElo "2732"]
[BlackElo "2503"]
[TimeControl "180+1"]
[EndTime "10:28:10 PDT"]
[Termination "Saxar85 won by resignation"]

1. Nf3 {[%clk 0:02:55.2]} 1... d5 {[%clk 0:02:57.6]} 2. g3 {[%clk 0:02:54.8]}
2... Nd7 {[%clk 0:02:55.6]} 3. d4 {[%clk 0:02:52.9]} 3... b5 {[%clk 0:02:55.2]}
4. Bg2 {[%clk 0:02:52.3]} 4... Bb7 {[%clk 0:02:55.1]} 5. O-O {[%clk 0:02:51]}
5... e6 {[%clk 0:02:55.1]} 6. a4 {[%clk 0:02:49]} 6... b4 {[%clk 0:02:54.7]} 7.
c4 {[%clk 0:02:47.3]} 7... bxc3 {[%clk 0:02:52.2]} 8. Nxc3 {[%clk 0:02:46.8]}
8... Ngf6 {[%clk 0:02:52.4]} 9. Bf4 {[%clk 0:02:40]} 9... a6 {[%clk 0:02:35.3]}
10. a5 {[%clk 0:02:21.1]} 10... Be7 {[%clk 0:02:30.9]} 11. Qa4 {[%clk 0:02:20]}
11... c5 {[%clk 0:02:08.8]} 12. dxc5 {[%clk 0:02:17.8]} 12... Bxc5 {[%clk
0:02:08.6]} 13. b4 {[%clk 0:02:02.8]} 13... Be7 {[%clk 0:02:07]} 14. b5 {[%clk
0:01:57.9]} 14... axb5 {[%clk 0:01:56.2]} 15. Nxb5 {[%clk 0:01:57.5]} 15... O-O
{[%clk 0:01:55.3]} 16. Bc7 {[%clk 0:01:51.5]} 16... Qc8 {[%clk 0:01:48.7]} 17.
Rfc1 {[%clk 0:01:48]} 17... Nc5 {[%clk 0:01:48.3]} 18. Qa3 {[%clk 0:01:38.7]}
18... Ba6 {[%clk 0:01:44]} 19. Bd6 {[%clk 0:01:33.3]} 19... Bxd6 {[%clk
0:01:23.4]} 20. Nxd6 {[%clk 0:01:32.7]} 20... Qd7 {[%clk 0:01:23.6]} 21. Qxc5
{[%clk 0:01:24.5]} 21... Rfd8 {[%clk 0:01:23.5]} 22. Nxf7 {[%clk 0:01:06.6]}
22... Qxf7 {[%clk 0:01:24.4]} 23. Ne5 {[%clk 0:01:04.1]} 23... Qh5 {[%clk
0:01:17]} 24. Nc6 {[%clk 0:00:59.5]} 24... Rd7 {[%clk 0:01:08.5]} 25. e3 {[%clk
0:00:57.6]} 25... Rf7 {[%clk 0:00:47]} 26. h3 {[%clk 0:00:48.7]} 26... Bd3
{[%clk 0:00:28.6]} 27. Qd6 {[%clk 0:00:37.8]} 27... Ne4 {[%clk 0:00:20.7]} 28.
Qxe6 {[%clk 0:00:35.6]} 28... Nxf2 {[%clk 0:00:19.4]} 29. Ne5 {[%clk 0:00:33.5]}
29... Qf5 {[%clk 0:00:14.2]} 30. Qxf7+ {[%clk 0:00:31.7]} 30... Qxf7 {[%clk
0:00:14.2]} 31. Nxf7 {[%clk 0:00:31.9]} 1-0

[Event "*** SCC Grand Prix: Titled Tuesday Blitz"]
[Site "Chess.com"]
[Date "2020.06.02"]
[Round "3"]
[White "aRk_iN"]
[Black "Everyfishknows"]
[Result "1/2-1/2"]
[WhiteElo "2099"]
[BlackElo "2308"]
[TimeControl "180+1"]
[EndTime "10:28:11 PDT"]
[Termination "Game drawn by repetition"]

1. d4 {[%clk 0:03:00.9]} 1... Nf6 {[%clk 0:02:56.8]} 2. Bg5 {[%clk 0:03:00.1]}
2... Ne4 {[%clk 0:02:56.1]} 3. h4 {[%clk 0:02:59.7]} 3... d5 {[%clk 0:02:56.2]}
4. Nd2 {[%clk 0:02:54.1]} 4... Bf5 {[%clk 0:02:55.1]} 5. Ngf3 {[%clk 0:02:45.8]}
5... h6 {[%clk 0:02:51.2]} 6. Bf4 {[%clk 0:02:45.5]} 6... e6 {[%clk 0:02:47]} 7.
Nxe4 {[%clk 0:02:43]} 7... Bxe4 {[%clk 0:02:47.9]} 8. e3 {[%clk 0:02:27.1]} 8...
c5 {[%clk 0:02:44.7]} 9. Bd3 {[%clk 0:02:09.3]} 9... Bxd3 {[%clk 0:02:40.4]} 10.
Qxd3 {[%clk 0:02:08]} 10... Nc6 {[%clk 0:02:37.2]} 11. O-O {[%clk 0:01:20.3]}
11... Bd6 {[%clk 0:02:32.2]} 12. Bxd6 {[%clk 0:01:14.9]} 12... Qxd6 {[%clk
0:02:33.1]} 13. dxc5 {[%clk 0:01:09.4]} 13... Qxc5 {[%clk 0:02:34]} 14. c3
{[%clk 0:01:03.8]} 14... O-O {[%clk 0:02:32.8]} 15. e4 {[%clk 0:00:54]} 15...
Rfd8 {[%clk 0:02:26.6]} 16. e5 {[%clk 0:00:52.9]} 16... d4 {[%clk 0:02:19.3]}
17. cxd4 {[%clk 0:00:50.6]} 17... Nxd4 {[%clk 0:02:18.7]} 18. Nxd4 {[%clk
0:00:39.8]} 18... Rxd4 {[%clk 0:02:15.1]} 19. Qe3 {[%clk 0:00:34.9]} 19... Rd5
{[%clk 0:02:04.2]} 20. Rfe1 {[%clk 0:00:29.7]} 20... Qxe3 {[%clk 0:02:00.7]} 21.
Rxe3 {[%clk 0:00:29.3]} 21... Rc8 {[%clk 0:02:00.8]} 22. Rae1 {[%clk 0:00:25.6]}
22... Rc2 {[%clk 0:01:58]} 23. R1e2 {[%clk 0:00:24.8]} 23... Rd1+ {[%clk
0:01:49.5]} 24. Kh2 {[%clk 0:00:24.6]} 24... Rdd2 {[%clk 0:01:49.7]} 25. Rxd2
{[%clk 0:00:18.9]} 25... Rxd2 {[%clk 0:01:50.6]} 26. Rb3 {[%clk 0:00:18.7]}
26... b6 {[%clk 0:01:50.8]} 27. Kg3 {[%clk 0:00:16.9]} 27... Kf8 {[%clk
0:01:48.2]} 28. a4 {[%clk 0:00:14.4]} 28... Ke7 {[%clk 0:01:47.2]} 29. a5 {[%clk
0:00:14.4]} 29... bxa5 {[%clk 0:01:44.8]} 30. Rb7+ {[%clk 0:00:14.4]} 30... Rd7
{[%clk 0:01:44.7]} 31. Rb5 {[%clk 0:00:12.8]} 31... Rd5 {[%clk 0:01:38.9]} 32.
Rb7+ {[%clk 0:00:12.5]} 32... Rd7 {[%clk 0:01:34.8]} 33. Rb5 {[%clk 0:00:12.4]}
33... f6 {[%clk 0:01:29.6]} 34. exf6+ {[%clk 0:00:11.7]} 34... Kxf6 {[%clk
0:01:30.5]} 35. Rxa5 {[%clk 0:00:11.9]} 35... Rb7 {[%clk 0:01:31]} 36. Ra6
{[%clk 0:00:11.5]} 36... Rxb2 {[%clk 0:01:27.9]} 37. Rxa7 {[%clk 0:00:11.2]}
37... g5 {[%clk 0:01:28.4]} 38. hxg5+ {[%clk 0:00:10.9]} 38... hxg5 {[%clk
0:01:29.3]} 39. Ra5 {[%clk 0:00:09.9]} 39... Rb3+ {[%clk 0:01:28.9]} 40. f3
{[%clk 0:00:10.1]} 40... Rd3 {[%clk 0:01:29.1]} 41. Kg4 {[%clk 0:00:09.7]} 41...
Rd4+ {[%clk 0:01:29.5]} 42. Kg3 {[%clk 0:00:08.9]} 42... Rd5 {[%clk 0:01:24.1]}
43. Ra6 {[%clk 0:00:06.8]} 43... Kf5 {[%clk 0:01:21.4]} 44. Rb6 {[%clk
0:00:07.2]} 44... Rc5 {[%clk 0:01:21.1]} 45. Ra6 {[%clk 0:00:07.1]} 45... Rd5
{[%clk 0:01:21.4]} 46. Rb6 {[%clk 0:00:07.3]} 46... Rc5 {[%clk 0:01:21]} 47. Ra6
{[%clk 0:00:07.6]} 47... Rd5 {[%clk 0:01:21.1]} 1/2-1/2

[Event "*** SCC Grand Prix: Titled Tuesday Blitz"]
[Site "Chess.com"]
[Date "2020.06.02"]
[Round "3"]
[White "latixxa"]
[Black "Benjoneliere44"]
[Result "1-0"]
[WhiteElo "2158"]
[BlackElo "2447"]
[TimeControl "180+1"]
[EndTime "10:28:12 PDT"]
[Termination "latixxa won by resignation"]

1. d4 {[%clk 0:03:00.9]} 1... d6 {[%clk 0:02:59.9]} 2. e4 {[%clk 0:02:59.9]}
2... g6 {[%clk 0:02:58.9]} 3. Nc3 {[%clk 0:02:59.1]} 3... Bg7 {[%clk 0:02:47.9]}
4. f4 {[%clk 0:02:58.8]} 4... Nf6 {[%clk 0:02:43.1]} 5. Nf3 {[%clk 0:02:58.5]}
5... O-O {[%clk 0:02:42.8]} 6. e5 {[%clk 0:02:57.9]} 6... dxe5 {[%clk
0:02:41.6]} 7. fxe5 {[%clk 0:02:58.8]} 7... Nd5 {[%clk 0:02:41.5]} 8. Bc4 {[%clk
0:02:58.6]} 8... Nxc3 {[%clk 0:02:40.4]} 9. bxc3 {[%clk 0:02:59.5]} 9... c5
{[%clk 0:02:35.4]} 10. O-O {[%clk 0:02:59.3]} 10... cxd4 {[%clk 0:02:35.1]} 11.
cxd4 {[%clk 0:02:58.8]} 11... Nc6 {[%clk 0:02:36]} 12. c3 {[%clk 0:02:57.2]}
12... Na5 {[%clk 0:02:32.1]} 13. Bd3 {[%clk 0:02:54]} 13... Be6 {[%clk
0:02:32.1]} 14. Qe2 {[%clk 0:02:51.7]} 14... Rc8 {[%clk 0:02:31.4]} 15. Bd2
{[%clk 0:02:39.7]} 15... Bc4 {[%clk 0:02:31.4]} 16. Ng5 {[%clk 0:02:25.3]} 16...
Bxd3 {[%clk 0:02:30.2]} 17. Qxd3 {[%clk 0:02:26.2]} 17... e6 {[%clk 0:02:28.5]}
18. Ne4 {[%clk 0:02:20]} 18... Qd5 {[%clk 0:02:15.2]} 19. Bh6 {[%clk 0:02:14.1]}
19... Qxe4 {[%clk 0:01:59.4]} 20. Qxe4 {[%clk 0:02:11.6]} 20... Bxh6 {[%clk
0:02:00]} 21. Rf3 {[%clk 0:02:03.6]} 21... Bg7 {[%clk 0:01:57.2]} 22. Raf1
{[%clk 0:02:01.7]} 22... Rc7 {[%clk 0:01:53]} 23. Rh3 {[%clk 0:01:48.9]} 23...
Nc6 {[%clk 0:01:43.6]} 24. Qh4 {[%clk 0:01:47.9]} 24... h6 {[%clk 0:01:41.2]}
25. Rhf3 {[%clk 0:01:37.6]} 25... Ne7 {[%clk 0:01:38.2]} 26. g4 {[%clk
0:01:34.4]} 26... g5 {[%clk 0:01:33.3]} 27. Qg3 {[%clk 0:01:31.6]} 27... Ng6
{[%clk 0:01:33.3]} 28. Rd3 {[%clk 0:01:20.9]} 28... Nf4 {[%clk 0:01:31.1]} 29.
Rxf4 {[%clk 0:01:20]} 29... gxf4 {[%clk 0:01:32]} 30. Qxf4 {[%clk 0:01:20.6]}
30... Rfc8 {[%clk 0:01:32.5]} 31. Qf3 {[%clk 0:01:18.7]} 31... b5 {[%clk
0:01:29.5]} 32. Kf2 {[%clk 0:01:16.3]} 32... a5 {[%clk 0:01:29]} 33. Kg3 {[%clk
0:01:03]} 33... b4 {[%clk 0:01:28.4]} 34. cxb4 {[%clk 0:01:03.1]} 34... axb4
{[%clk 0:01:29.3]} 35. Kh4 {[%clk 0:00:53]} 35... Rc2 {[%clk 0:01:28.1]} 36. h3
{[%clk 0:00:50.4]} 36... Rh2 {[%clk 0:01:17.7]} 37. Rb3 {[%clk 0:00:48.2]} 37...
Bf8 {[%clk 0:01:15.7]} 38. Qf4 {[%clk 0:00:45.4]} 38... Rcc2 {[%clk 0:01:13.2]}
39. Rf3 {[%clk 0:00:43.9]} 39... f5 {[%clk 0:00:40.9]} 40. gxf5 {[%clk
0:00:39.8]} 40... Kh7 {[%clk 0:00:35.3]} 41. fxe6 {[%clk 0:00:37.4]} 41... Be7+
{[%clk 0:00:34.6]} 42. Kh5 {[%clk 0:00:36.8]} 1-0